fUSD/lending_fUSD_20260404
["ID","MTS","AMOUNT","RATE_DAILY","PERIOD"]
[419692864,1775298644088,-153.66,0.00015636,2]
[419692865,1775298644098,-150.0,0.00015636,2]
[419692866,1775298644108,-785.54,0.00015638,2]
[419692867,1775298644118,-150.0,0.00015644,2]
[419692868,1775298644128,-906.0,0.00015649,2]
[419692869,1775298644137,-532.0,0.00015654,2]
[419692870,1775298644146,-150.0,0.00015657,2]
[419692871,1775298644156,-150.0,0.00015669,2]
[419692872,1775298644165,-6266.63213664,0.00015678,2]
[419692873,1775298644175,-4438.26444967,0.0001568,2]
[419692874,1775298644184,-150.0,0.0001568,2]
[419692875,1775298644194,-2000.0,0.000157,2]
[419692876,1775298644203,-200.0,0.000157,5]
[419692878,1775298644212,-2000.0,0.000157,2]
[419692880,1775298644222,-5977.09790953,0.00015701,2]
[419692882,1775298644231,-150.0,0.00015704,2]
[419692884,1775298644241,-150.0,0.00015709,2]
[419692886,1775298644250,-150.0,0.00015709,2]
[419692888,1775298644260,-150.0,0.00015714,2]
[419692890,1775298644269,-194609.24030404,0.0001572,2]
[419692892,1775298644278,-887.867303,0.0001572,2]
[419692894,1775298644287,-1233.1804,0.0001572,2]
[419692896,1775298644297,-887.867303,0.0001572,2]
[419692898,1775298644306,-1233.1804,0.0001572,2]
[419692900,1775298644317,-887.867303,0.0001572,2]
[419692903,1775298644327,-887.867303,0.0001572,2]
[419692905,1775298644337,-1233.1804,0.0001572,2]
[419692906,1775298644347,-1233.1804,0.0001572,2]
[419692908,1775298644357,-705.483499,0.0001572,2]
[419692910,1775298644366,-705.483499,0.0001572,2]
[419692912,1775298644375,-484.81302,0.0001572,2]
[419692914,1775298644385,-705.483499,0.0001572,2]
[419692916,1775298644394,-484.81302,0.0001572,2]
[419692917,1775298644403,-705.483499,0.0001572,2]
[419692919,1775298644413,-484.81302,0.0001572,2]
[419692921,1775298644422,-484.81302,0.0001572,2]
[419692923,1775298644431,-150.0,0.00015724,2]
[419692924,1775298644441,-159.9,0.00015732,2]
[419692926,1775298644451,-150.0,0.00015733,2]
[419692928,1775298644460,-150.0,0.00015733,2]
[419692930,1775298644470,-185.8713019,0.00015736,2]
[419692932,1775298644480,-151.0,0.00015736,2]
[419692934,1775298644489,-5000.0,0.0001574,2]
[419692936,1775298644499,-1000.0,0.00015746,2]
[419692938,1775298644508,-906.0,0.00015749,2]
[419692939,1775298644517,-1000.0,0.00015754,2]
[419692941,1775298644526,-150.0,0.00015763,2]
[419692943,1775298644536,-150.0,0.00015771,2]
[419692945,1775298644545,-150.0,0.00015771,2]
[419692947,1775298644554,-237.157904,0.00015772,2]
[419692948,1775298644564,-237.157904,0.00015772,2]
[419692950,1775298644573,-237.157904,0.00015772,2]
[419692952,1775298644582,-237.157904,0.00015772,2]
[419692954,1775298644592,-1000.0,0.00015774,2]
[419692956,1775298644601,-150.0,0.00015779,2]
[419692958,1775298644611,-150.0,0.00015782,2]
[419692959,1775298644620,-1000.0,0.00015782,2]
[419692961,1775298644629,-341.0,0.00015783,2]
[419692963,1775298644638,-170.43588282,0.00015784,2]
[419692965,1775298644649,-150.0,0.00015787,2]
[419692967,1775298644659,-6266.63213664,0.00015789,2]
[419692969,1775298644667,-154.6173872,0.00015799,2]
[419692971,1775298644677,-200.0,0.000158,5]
[419692973,1775298644686,-5977.09790953,0.000158,2]
[419692974,1775298644697,-663.62587502,0.00015801,2]
[419692976,1775298644706,-2259.03257639,0.00015807,2]
[419692978,1775298644716,-1000.0,0.00015808,2]
[419692980,1775298644726,-212.96330975,0.00015809,2]
[419692982,1775298644735,-150.0,0.00015811,2]
[419692984,1775298644744,-151.0,0.00015813,2]
[419692986,1775298644754,-151.0,0.00015813,2]
[419692988,1775298644764,-151.0,0.00015815,2]
[419692990,1775298644773,-1000.0,0.00015818,2]
[419692992,1775298644783,-151.0,0.00015819,2]
[419692994,1775298644792,-151.0,0.00015819,2]
[419692995,1775298644802,-151.0,0.00015819,2]
[419692997,1775298644811,-1000.0,0.0001582,2]
[419692999,1775298644821,-150.0,0.00015822,2]
[419693001,1775298644831,-150.0,0.00015829,2]
[419693003,1775298644840,-150.0,0.00015834,2]
[419693004,1775298644850,-150.0,0.0001584,2]
[419693006,1775298644860,-2000.0,0.0001584,2]
[419693008,1775298644869,-2000.0,0.0001584,2]
[419693010,1775298644879,-2000.0,0.0001584,2]
[419693012,1775298644889,-195.0,0.0001584,2]
[419693014,1775298644898,-2500.0,0.0001584,2]
[419693016,1775298644908,-1000.0,0.00015843,2]
[419693018,1775298644918,-1000.0,0.00015844,2]
[419693019,1775298644928,-1000.0,0.00015848,2]
[419693021,1775298644938,-1000.0,0.00015854,2]
[419693023,1775298644947,-150.0,0.00015855,2]
[419693025,1775298644956,-150.0,0.00015855,2]
[419693027,1775298644966,-3221.0,0.00015856,5]
[419693029,1775298644975,-150.0,0.00015867,2]
[419693030,1775298644984,-532.0,0.00015868,2]
[419693032,1775298644993,-200.0,0.00015871,2]
[419693034,1775298645002,-200.0,0.00015872,2]
[419693036,1775298645011,-2217.26,0.00015872,2]
[419693038,1775298645022,-500.0,0.00015873,2]
[419693040,1775298645031,-500.0,0.00015873,2]
[419693042,1775298645041,-500.0,0.00015873,2]
[419693044,1775298645050,-443.75931804,0.00015873,2]
[419693046,1775298645060,-1000.0,0.00015874,2]
[419693048,1775298645070,-204.15822067,0.00015877,2]
[419693050,1775298645080,-150.0,0.00015881,2]
[419693052,1775298645089,-150.0,0.00015886,2]
[419693054,1775298645098,-150.0,0.0001589,2]
[419693055,1775298645107,-2000.0,0.0001589,2]
[419693057,1775298645117,-150.0,0.00015893,2]
[419693059,1775298645127,-1297.89044282,0.00015893,2]
[419693061,1775298645137,-3373.76,0.00015895,2]
[419693073,1775298645146,-1000.0,0.00015897,2]
[419693074,1775298645379,-68827.0416064,0.00015899,2]
[419693075,1775298645388,-151.0,0.00015899,2]
[419693076,1775298645398,-151.0,0.00015899,2]
[419693077,1775298645407,-151.0,0.00015899,2]
[419693078,1775298645417,-151.0,0.00015899,2]
[419693079,1775298645427,-151.0,0.00015899,2]
[419693080,1775298645436,-151.0,0.00015899,2]
[419693081,1775298645445,-599.93333783,0.000159,2]
[419693082,1775298645455,-25559.75281378,0.000159,2]
[419693083,1775298645464,-1000.0,0.000159,2]
[419693084,1775298645473,-5977.09790953,0.000159,2]
[419693085,1775298645483,-867.0,0.000159,2]
[419693086,1775298645492,-150.0,0.000159,2]
[419693087,1775298645502,-611.0,0.000159,2]
[419693088,1775298645512,-1000.0,0.000159,2]
[419693089,1775298645521,-200.0,0.000159,5]
[419693090,1775298645531,-2000.0,0.000159,2]
[419693091,1775298645540,-623.0,0.000159,2]
[419693092,1775298645550,-6266.63213664,0.000159,2]
[419693093,1775298645559,-150.0,0.000159,2]
[419693094,1775298645569,-1259.4360913,0.000159,2]
[419693095,1775298645578,-3148.0,0.000159,5]
[419693096,1775298645588,-500.0,0.00015901,2]
[419693097,1775298645597,-500.0,0.00015901,2]
[419693098,1775298645607,-1000.0,0.00015901,2]
[419693099,1775298645616,-500.0,0.00015901,2]
[419693100,1775298645626,-500.0,0.00015901,2]
[419693101,1775298645635,-500.0,0.00015901,2]
[419693102,1775298645645,-500.0,0.00015901,2]
[419693103,1775298645654,-500.0,0.00015901,2]
[419693104,1775298645664,-2000.0,0.00015901,2]
[419693105,1775298645673,-150.0,0.00015908,2]
[419693106,1775298645682,-906.0,0.00015908,2]
[419693107,1775298645691,-209.45,0.00015912,2]
[419693108,1775298645701,-1000.0,0.00015914,2]
[419693109,1775298645710,-1000.0,0.00015918,2]
[419693110,1775298645719,-1000.0,0.0001592,2]
[419693111,1775298645730,-1000.0,0.00015921,2]
[419693112,1775298645740,-150.0,0.00015927,2]
[419693113,1775298645750,-152.0,0.00015934,2]
[419693114,1775298645760,-152.0,0.00015934,2]
[419693115,1775298645769,-152.0306331,0.00015934,2]
[419693116,1775298645779,-150.0,0.00015941,2]
[419693117,1775298645789,-150.0,0.00015943,2]
[419693118,1775298645799,-150.0,0.00015945,2]
[419693119,1775298645809,-150.0,0.00015947,2]
[419693120,1775298645818,-204.12307403,0.00015968,2]
[419693121,1775298645828,-1000.0,0.0001597,2]
[419693122,1775298645838,-324.0,0.00015973,2]
[419693123,1775298645848,-3866.0,0.00015973,2]
[419693124,1775298645859,-500.0,0.00015973,2]
[419693125,1775298645871,-500.0,0.00015973,2]
[419693126,1775298645880,-501.7767113,0.00015973,2]
[419693127,1775298645892,-500.0,0.00015973,2]
[419693128,1775298645904,-500.0,0.00015973,2]
[419693129,1775298645914,-178.83121777,0.00015973,2]
[419693130,1775298645925,-500.0,0.00015973,2]
[419693131,1775298645935,-500.0,0.00015973,2]
[419693132,1775298645946,-473.52657981,0.00015973,2]
[419693139,1775298646536,-27.79538082,0.00015973,2]
[419693140,1775298646546,-500.0,0.00015973,2]
[419693141,1775298646555,-527.55865505,0.00015973,2]
[419693142,1775298646565,-500.0,0.00015973,2]
[419693143,1775298646574,-418.29613778,0.00015973,2]
[419693144,1775298647408,-81.70386222,0.00015973,2]
[419693145,1775298647418,-500.0,0.00015973,2]
[419693146,1775298647427,-142.97422279,0.00015973,2]
[419693147,1775298648868,-1496.2602281,0.00014587,2]
[419693148,1775298648937,-453.81265671,0.00014587,2]
[419693149,1775298648947,-874.57641419,0.00014587,2]
[419693150,1775298777325,-250.707,0.0001275,2]
[419693151,1775298777349,-250.0,0.00013,2]
[419693152,1775298777373,-512.0,0.00013111,2]
[419693153,1775298777396,-250.0,0.00013342,2]
[419693154,1775298777420,-600.0,0.00013572,2]
[419693155,1775298777444,-219.28053588,0.00013725,2]
[419693156,1775298777467,-300.0,0.00013824,2]
[419693157,1775298777490,-500.0,0.00013825,2]
[419693158,1775298777513,-500.0,0.00013825,2]
[419693159,1775298777536,-500.0,0.00013825,2]
[419693160,1775298777559,-500.0,0.00013825,2]
[419693161,1775298777583,-9514.52203159,0.00013825,2]
[419693162,1775298777606,-166.64528262,0.00014144,2]
[419693163,1775298777629,-195.0,0.00014144,2]
[419693164,1775298777722,-195.0,0.00014144,2]
[419693165,1775298777745,-195.0,0.00014144,2]
[419693166,1775298777768,-195.0,0.00014144,2]
[419693167,1775298777789,-204.90525748,0.00014144,2]
[419693168,1775298777811,-300.0,0.00014265,2]
[419693169,1775298777834,-300.0,0.00014265,2]
[419693170,1775298777856,-300.0,0.00014265,2]
[419693171,1775298777879,-300.0,0.00014265,2]
[419693172,1775298777902,-300.0,0.00014422,2]
[419693173,1775298777925,-600.0,0.00014422,2]
[419693174,1775298777947,-195.0,0.00014422,2]
[419693175,1775298777968,-179.14916869,0.00014422,2]
[419693176,1775298777991,-150.0,0.00014422,2]
[419693177,1775298778013,-300.32546705,0.00014422,2]
[419693178,1775298778036,-500.0,0.00014422,2]
[419693179,1775298778060,-250.0,0.00014422,2]
[419693180,1775298778084,-500.0,0.00014569,2]
[419693181,1775298778108,-500.0,0.00014723,2]
[419693182,1775298778130,-500.0,0.00014723,2]
[419693183,1775298778155,-500.0,0.00014723,2]
[419693184,1775298778179,-500.0,0.00014723,2]
[419693185,1775298778202,-500.0,0.00014723,2]
[419693186,1775298778225,-529.17793469,0.00014723,2]
[419693187,1775298778248,-231.21885366,0.00014723,2]
[419693188,1775298778272,-500.0,0.00014723,2]
[419693189,1775298778296,-500.0,0.00014723,2]
[419693190,1775298778320,-500.0,0.00014723,2]
[419693191,1775298778345,-500.0,0.00014723,2]
[419693192,1775298778368,-500.0,0.00014723,2]
[419693193,1775298778392,-500.0,0.00014723,2]
[419693194,1775298778416,-500.0,0.00014723,2]
[419693195,1775298778439,-500.0,0.00014723,2]
[419693196,1775298778464,-500.0,0.00014723,2]
[419693197,1775298778488,-500.0,0.00014723,2]
[419693198,1775298778513,-500.0,0.00014723,2]
[419693199,1775298778535,-174.61919141,0.00014723,2]
[419693200,1775298778560,-500.0,0.00014778,2]
[419693201,1775298778584,-500.0,0.00014833,2]
[419693202,1775298778608,-500.0,0.00014888,2]
[419693203,1775298778632,-500.0,0.00014943,2]
[419693204,1775298778655,-500.0,0.00014998,2]
[419693205,1775298778678,-300.0,0.00015,2]
[419693206,1775298778701,-5000.0,0.00015005,2]
[419693207,1775298778725,-500.0,0.00015053,2]
[419693208,1775298778748,-500.0,0.00015108,2]
[419693209,1775298778772,-420.0,0.00015148,2]
[419693210,1775298778798,-500.0,0.00015163,2]
[419693211,1775298778827,-422.44927693,0.00015218,2]
[419693220,1775298814995,166.0,0.00016101,120]
[419693221,1775298833234,166.0,0.000161,120]
[419693222,1775298851039,255.0,0.00016101,120]
[419693223,1775298865467,222.0,0.000161,120]
[419693229,1775299748246,-294.0,0.00011,2]
[419693231,1775299831788,-206.0,0.00011,2]
[419693232,1775299831799,-250.0,0.00011125,2]
[419693233,1775299831808,-600.0,0.0001125,2]
[419693234,1775299831818,-500.0,0.000115,2]
[419693235,1775299831828,-2131.49,0.00011507,2]
[419693236,1775299831837,-600.0,0.000121,2]
[419693237,1775299831846,-250.0,0.000121,2]
[419693238,1775299831856,-413.26808823,0.000121,2]
[419693239,1775299831865,-600.0,0.000121,2]
[419693240,1775299831874,-502.0,0.00013111,2]
[419693241,1775299831884,-1200.0,0.0001315,2]
[419693242,1775299831893,-500.0,0.00013151,2]
[419693243,1775299831903,-211.02,0.00013175,2]
[419693244,1775299831913,-1600.0,0.00013188,2]
[419693245,1775299831922,-12368.44,0.00013264,2]
[419693246,1775299831932,-180.0,0.00013492,2]
[419693247,1775299831941,-1852.42,0.00013493,2]
[419693248,1775299831952,-200.0,0.00013522,2]
[419693249,1775299831961,-25687.76,0.00013555,2]
[419693250,1775299831971,-2533.68,0.00013585,2]
[419693251,1775299831980,-328.0,0.00013589,2]
[419693252,1775299831990,-1500.0,0.00013742,2]
[419693253,1775299831999,-150.0,0.00013781,2]
[419693254,1775299832008,-443.45,0.00013828,2]
[419693255,1775299832018,-1100.0,0.00014082,2]
[419693256,1775299832027,-150.0,0.00014399,2]
[419693257,1775299832036,-150.0,0.000144,2]
[419693258,1775299832045,-150.0,0.000144,2]
[419693259,1775299832055,-150.23775673,0.000144,2]
[419693260,1775299832065,-150.0,0.000144,2]
[419693261,1775299832075,-150.33770113,0.000144,2]
[419693262,1775299832084,-150.0,0.000144,2]
[419693263,1775299832094,-150.0,0.000144,2]
[419693264,1775299832105,-150.0,0.000144,2]
[419693265,1775299832115,-150.0,0.000144,2]
[419693266,1775299832125,-150.0,0.000144,2]
[419693267,1775299832134,-150.0,0.000144,2]
[419693268,1775299832145,-150.0,0.000144,2]
[419693269,1775299832154,-150.0,0.000144,2]
[419693270,1775299832163,-150.0,0.000144,2]
[419693271,1775299832172,-1680.0,0.00014465,2]
[419693272,1775299832182,-443.45,0.0001452,2]
[419693273,1775299832191,-3701.28404146,0.00014522,2]
[419693274,1775299832201,-40171.2992614,0.00014522,2]
[419693295,1775299839912,-29863.3074386,0.00014522,2]
[419693296,1775299839922,-1322.6931,0.00014522,2]
[419693297,1775299839931,-2500.0,0.00014523,2]
[419693298,1775299839941,-1000.0,0.00014525,2]
[419693299,1775299839951,-1000.0,0.00014525,2]
[419693300,1775299839960,-1000.0,0.00014525,2]
[419693301,1775299839969,-728.376,0.00014525,2]
[419693302,1775299839979,-4675.10224152,0.00014567,2]
[419693303,1775299839988,-222.0,0.00014569,2]
[419693304,1775299839998,-500.0,0.00014569,2]
[419693305,1775299840007,-500.0,0.00014569,2]
[419693306,1775299840016,-500.0,0.00014569,2]
[419693307,1775299840026,-500.0,0.00014569,2]
[419693308,1775299840035,-151.0,0.0001462,2]
[419693309,1775299840045,-1072.04030549,0.00014622,5]
[419693310,1775299840054,-500.0,0.00014623,2]
[419693311,1775299840064,-500.0,0.00014623,2]
[419693312,1775299840074,-500.0,0.00014623,2]
[419693313,1775299840083,-515.28433318,0.00014623,2]
[419693314,1775299840093,-500.0,0.00014623,2]
[419693315,1775299840102,-500.0,0.00014623,2]
[419693316,1775299840112,-500.0,0.00014623,2]
[419693317,1775299840121,-500.0,0.00014623,2]
[419693318,1775299840132,-500.0,0.00014623,2]
[419693319,1775299840141,-572.92,0.00014623,2]
[419693320,1775299840150,-500.0,0.00014623,2]
[419693321,1775299840159,-500.0,0.00014623,2]
[419693322,1775299840168,-484.31700749,0.00014623,2]
[419693323,1775299840177,-432615.27,0.00014623,2]
[419693324,1775299840187,-202.77599014,0.00014657,2]
[419693325,1775299840197,-634.59222787,0.00014657,2]
[419693326,1775299840207,-150.0,0.00014667,2]
[419693327,1775299840217,-500.0,0.00014673,2]
[419693328,1775299840227,-3701.28404144,0.00014675,2]
[419693329,1775299840236,-500.0,0.00014701,2]
[419693330,1775299840246,-500.0,0.00014701,2]
[419693331,1775299840255,-174.61919141,0.00014701,2]
[419693332,1775299840265,-500.0,0.00014701,2]
[419693333,1775299840274,-500.0,0.00014701,2]
[419693334,1775299840284,-500.0,0.00014701,2]
[419693335,1775299840293,-500.0,0.00014701,2]
[419693336,1775299840303,-500.0,0.00014701,2]
[419693337,1775299840313,-319.32250207,0.00014701,2]
[419693338,1775299840322,-1473.5237198,0.00014716,2]
[419693339,1775299840331,-613.78588722,0.00014747,2]
[419693340,1775299840341,-6670.8250717,0.00014757,2]
[419693341,1775299840350,-69563.2702729,0.00014757,2]
[419693342,1775299840360,-25075.8609948,0.00014757,2]
[419693343,1775299840371,-986.54432,0.00014757,2]
[419693344,1775299840380,-710.293842,0.00014757,2]
[419693345,1775299840390,-986.54432,0.00014757,2]
[419693346,1775299840400,-710.293842,0.00014757,2]
[419693347,1775299840410,-986.54432,0.00014757,2]
[419693348,1775299840419,-710.293842,0.00014757,2]
[419693349,1775299840429,-986.54432,0.00014757,2]
[419693350,1775299840439,-710.293842,0.00014757,2]
[419693351,1775299840448,-151.0,0.00014757,2]
[419693352,1775299840458,-151.0,0.00014757,2]
[419693353,1775299840467,-151.0,0.00014757,2]
[419693354,1775299840477,-155.975692,0.00014757,2]
[419693355,1775299840487,-821961.7906726,0.00014757,2]
[419693356,1775299840497,-387.850416,0.00014757,2]
[419693357,1775299840507,-387.850416,0.00014757,2]
[419693358,1775299840517,-387.850416,0.00014757,2]
[419693359,1775299840526,-387.850416,0.00014757,2]
[419693360,1775299840536,-151.0,0.00014757,2]
[419693361,1775299840545,-4675.10224148,0.00014757,2]
[419693362,1775299840555,-500.0,0.00014768,2]
[419693363,1775299840564,-500.0,0.00014773,2]
[419693364,1775299840574,-500.0,0.00014773,2]
[419693365,1775299840583,-500.0,0.00014773,2]
[419693366,1775299840592,-150.0,0.000148,2]
[419693367,1775299840602,-150.0,0.000148,2]
[419693368,1775299840611,-150.0,0.000148,2]
[419693369,1775299840621,-3701.28404144,0.00014828,2]
[419693370,1775299840630,-1600.0,0.00014836,2]
[419693371,1775299840639,-150.0,0.00014933,2]
[419693372,1775299840648,-150.0,0.00014933,2]
[419693373,1775299840657,-4675.10224148,0.00014948,2]
[419693374,1775299840667,-3701.28404144,0.00014981,2]
[419693375,1775299840676,-372.93752928,0.00015,14]
[419693376,1775299840685,-624.40125456,0.00015015,2]
[419693377,1775299840695,-500.0,0.00015061,2]
[419693378,1775299840704,-500.0,0.00015061,2]
[419693379,1775299840714,-500.0,0.00015061,2]
[419693380,1775299840723,-564.386799,0.00015068,2]
[419693381,1775299840733,-564.386799,0.00015068,2]
[419693382,1775299840743,-564.386799,0.00015068,2]
[419693383,1775299840752,-564.386799,0.00015068,2]
[419693384,1775299840762,-168.0,0.00015077,2]
[419693385,1775299840771,-788.23816,0.000151,2]
[419693386,1775299840780,-500.0,0.00015104,2]
[419693387,1775299840790,-500.0,0.00015104,2]
[419693388,1775299840799,-168.0,0.00015127,2]
[419693389,1775299840809,-3701.28404144,0.00015134,2]
[419693390,1775299840819,-4675.10224148,0.00015138,2]
[419693391,1775299840828,-624.40125456,0.00015163,2]
[419693392,1775299840838,-150.0,0.000152,2]
[419693393,1775299840848,-150.0,0.000152,2]
[419693394,1775299840857,-150.0,0.000152,2]
[419693395,1775299840867,-150.0,0.000152,2]
[419693396,1775299840876,-150.0,0.000152,2]
[419693397,1775299840886,-150.0,0.000152,2]
[419693398,1775299840896,-150.0,0.000152,2]
[419693399,1775299840906,-150.0,0.000152,2]
[419693400,1775299840915,-150.0,0.000152,2]
[419693401,1775299840924,-443.45,0.00015211,2]
[419693403,1775299840934,-168.0,0.00015231,2]
[419693404,1775299840943,-444.0,0.00015244,2]
[419693405,1775299840953,-455.0,0.00015244,2]
[419693406,1775299840962,-181.08010149,0.00015249,2]
[419693407,1775299840972,-405.41,0.00015254,2]
[419693408,1775299840982,-155.0,0.00015271,2]
[419693409,1775299840993,-255.0,0.00015271,2]
[419693410,1775299841003,-634.59222786,0.00015279,2]
[419693411,1775299841013,-168.0,0.00015281,2]
[419693412,1775299841023,-3701.28404144,0.00015288,2]
[419693413,1775299841032,-624.40125456,0.0001531,2]
[419693414,1775299841042,-1000.0,0.00015321,2]
[419693415,1775299841051,-500.0,0.00015324,2]
[419693416,1775299841061,-500.0,0.00015324,2]
[419693417,1775299841072,-4675.10224148,0.00015329,2]
[419693418,1775299841083,-168.0,0.00015354,2]
[419693419,1775299841092,-500.0,0.00015371,2]
[419693420,1775299841103,-500.0,0.00015371,2]
[419693421,1775299841113,-168.0,0.00015372,2]
[419693422,1775299841123,-155.0,0.00015386,2]
[419693423,1775299841132,-222.0,0.00015386,2]
[419693424,1775299841143,-168.0,0.00015413,2]
[419693425,1775299841152,-3701.28404144,0.00015441,2]
[419693426,1775299841162,-1100.0,0.00015452,2]
[419693427,1775299841173,-168.0,0.00015455,2]
[419693428,1775299841184,-168.0,0.00015456,2]
[419693429,1775299841194,-624.40125456,0.00015458,2]
[419693430,1775299841203,-5888.0,0.00015464,2]
[419693431,1775299841213,-150.0,0.00015467,2]
[419693432,1775299841222,-150.0,0.00015467,2]
[419693433,1775299841232,-155.0,0.00015497,2]
[419693434,1775299841243,-2024.25,0.00015507,2]
[419693435,1775299841253,-4675.10224148,0.00015519,2]
[419693436,1775299841264,-5888.0,0.00015571,2]
[419693437,1775299841275,-3701.28404144,0.00015594,2]
[419693438,1775299841284,-4271.0,0.00015594,2]
[419693439,1775299841294,-168.0,0.00015597,2]
[419693440,1775299841303,-150.0,0.000156,2]
[419693441,1775299841313,-150.0,0.000156,2]
[419693442,1775299841322,-150.0,0.000156,2]
[419693443,1775299841332,-624.40125456,0.00015605,2]
[419693444,1775299841341,-3961.748,0.00015613,2]
[419693445,1775299841351,-232.345,0.00015613,2]
[419693446,1775299841360,-5888.0,0.00015657,2]
[419693447,1775299841370,-5888.0,0.00015657,2]
[419693448,1775299841381,-2958.84296644,0.0001568,2]
[419693449,1775299841391,-5000.0,0.0001568,2]
[419693450,1775299841401,-380.36512974,0.000157,2]
[419693451,1775299841411,-2000.0,0.000157,2]
[419693452,1775299841421,-564.386799,0.000157,2]
[419693453,1775299841430,-564.386799,0.000157,2]
[419693454,1775299841440,-387.850416,0.000157,2]
[419693455,1775299841449,-564.386799,0.000157,2]
[419693456,1775299841462,-387.850416,0.000157,2]
[419693457,1775299841472,-564.386799,0.000157,2]
[419693458,1775299841482,-387.850416,0.000157,2]
[419693459,1775299841491,-387.850416,0.000157,2]
[419693460,1775299841501,-151.0,0.000157,2]
[419693461,1775299841511,-163.10994461,0.000157,2]
[419693462,1775299841520,-2750.74532915,0.000157,2]
[419693463,1775299841530,-4675.10224148,0.0001571,2]
[419693464,1775299841540,-500.0,0.00015719,2]
[419693465,1775299841549,-500.0,0.00015719,2]
[419693466,1775299841559,-150.0,0.00015733,2]
[419693467,1775299841568,-3701.28404144,0.00015747,2]
[419693468,1775299841578,-986.54432,0.00015751,2]
[419693469,1775299841587,-710.293842,0.00015751,2]
[419693470,1775299841597,-986.54432,0.00015751,2]
[419693471,1775299841607,-710.293842,0.00015751,2]
[419693472,1775299841616,-986.54432,0.00015751,2]
[419693473,1775299841626,-710.293842,0.00015751,2]
[419693474,1775299841636,-986.54432,0.00015751,2]
[419693475,1775299841645,-710.293842,0.00015751,2]
[419693476,1775299841655,-624.40125456,0.00015753,2]
[419693477,1775299841665,-163.0,0.00015753,2]
[419693478,1775299841674,-163.0,0.00015753,2]
[419693479,1775299841684,-500.0,0.00015773,2]
[419693480,1775299841694,-500.0,0.00015773,2]
[419693481,1775299841704,-178.83121777,0.00015773,2]
[419693483,1775299841713,-500.0,0.00015773,2]
[419693485,1775299841723,-500.0,0.00015773,2]
[419693487,1775299841732,-500.0,0.00015773,2]
[419693489,1775299841741,-183.74490038,0.00015773,2]
[419693491,1775299841750,-500.96208165,0.00015773,2]
[419693493,1775299841760,-500.0,0.00015773,2]
[419693495,1775299841769,-503.37341793,0.00015773,2]
[419693497,1775299841779,-418.82438739,0.00015773,2]
[419693499,1775299841789,-501.18780645,0.00015773,2]
[419693501,1775299841798,-1538.701433,0.00015779,2]
[419693503,1775299841807,-151.0,0.0001578,2]
[419693505,1775299841817,-151.0,0.0001578,2]
[419693507,1775299841827,-3866.0,0.00015781,2]
[419693509,1775299841836,-324.0,0.00015781,2]
[419693511,1775299841846,-187.78006525,0.00015797,2]
[419693513,1775299841855,-500.0,0.00015799,2]
[419693515,1775299841864,-500.0,0.00015799,2]
[419693516,1775299841873,-500.0,0.00015799,2]
[419693517,1775299841882,-500.0,0.00015799,2]
[419693518,1775299841892,-500.0,0.00015799,2]
[419693519,1775299841902,-500.0,0.00015799,2]